Cogmind - Beta 10.2 @@@ ROGUE MODE // 2020.12.27 @ 12:49:31 Player: Wakanaka Result: Destroyed by L-31 Rogue with Katana Performance ------------- Evolutions (1) 500 Regions Visited (2) 400 Robots Destroyed (23) 115 Value Destroyed (694) 694 Prototype IDs (2) 40 Alien Tech Used (0) 0 Bonus (0) 0 TOTAL SCORE: 1749 Bonus ------- None Cogmind --------- Core Integrity 0/400 Matter 164/300 Energy 100/100 System Corruption 0% Temperature Cool (0) Movement Core (550) Ox10 Location -9/Materials Parts ------- > --- POWER (1) -------- (None) > --- PROPULSION (2) --- (None) > --- UTILITY (3) ------ High-capacity Storage Unit Hacking Suite > --- WEAPON (3) ------- (None) > --- INVENTORY (12) --- Ion Engine High-capacity Battery (400) Structural Scanner Sensor Array Terrain Scanner Hacking Suite Peak State ------------ > --- POWER ------------ Ion Engine > --- PROPULSION ------- Aluminum Leg Improved Aluminum Leg > --- UTILITY ---------- High-capacity Storage Unit Targeting Computer Hacking Suite > --- WEAPON ----------- Light Assault Rifle Light Cannon Datajack > --- INVENTORY -------- Ion Engine Aluminum Leg High-capacity Battery Structural Scanner Sensor Array Terrain Scanner Light Armor Plating Hacking Suite [Rating: 13] Favorites ----------- Power Light Ion Engine Engine Light Ion Engine Propulsion Compact Wheel Leg Aluminum Leg Wheel Compact Wheel Utility Large Storage Unit Device Sensor Array Storage Large Storage Unit Processor Targeting Computer Hackware Hacking Suite Protection Light Armor Plating Weapon Light Assault Rifle Energy Gun EM Pulse Gun Ballistic Gun Light Assault Rifle Ballistic Cannon Light Cannon Launcher Grenade Launcher Special Melee Weapon Datajack Build | -11 -10 -9 ------- Run | Scr Mat Mat Slots Evolved 2 | . . 2 Power . | . . . Propulsion . | . . . Utility 1 | . . 1 Weapon 1 | . . 1 Parts Attached 29 | 6 16 7 Power 6 | 1 5 . Engine 6 | 1 5 . Core . | . . . Reactor . | . . . Propulsion 8 | 2 2 4 Treads . | . . . Leg 6 | . 2 4 Wheel 2 | 2 . . Hover . | . . . Flight . | . . . Utility 7 | 1 4 2 Device 1 | . 1 . Storage 3 | 1 2 . Processor 1 | . . 1 Hackware 1 | . 1 . Protection 1 | . . 1 Artifact . | . . . Weapon 8 | 2 5 1 Energy Gun 2 | 1 1 . Energy Cannon . | . . . Ballistic Gun 3 | 1 2 . Ballistic Cannon 1 | . 1 . Launcher 1 | . 1 . Special Weapon . | . . . Impact Weapon . | . . . Slashing Weapon . | . . . Piercing Weapon . | . . . Special Melee Weapon 1 | . . 1 Unidentified Prototypes . | . . . Parts Lost 17 | . 6 11 Power 3 | . 2 1 Propulsion 6 | . 1 5 Utility 2 | . . 2 Weapon 6 | . 3 3 Highest Loss Streak 9 | . 5 9 Average Slot Usage (%) 95 | . 98 83 Engine 12 | . 13 9 Leg 11 | . 10 15 Wheel 13 | . 16 . Device 4 | . 5 . Storage 13 | . 14 11 Processor 1 | . . 9 Hackware 8 | . 7 11 Energy Gun 7 | . 9 . Ballistic Gun 12 | . 13 8 Ballistic Cannon 4 | . 3 7 Special Melee Weapon 1 | . . 9 Naked Turns . | . . . Heaviest Build 42 | 10 41 42 Greatest Support 32 | 32 32 23 Greatest Overweight (x) 11 | . 2 11 Average Overweight (x) . | . . 2 Largest Inventory Capacity 12 | 6 12 12 Average Capacity 10 | 5 9 12 Most Carried 11 | 6 11 10 Average Carried 7 | 2 7 7 Final Capacity 12 | 6 12 12 Final Carried 11 | 6 11 6 Class Distribution -------------------- 100% | Mutant Dominant Class ---------------- Mutant | -10/Materials Mutant | -9/Materials Resources | -11 -10 -9 ----------- Run | Scr Mat Mat Matter Collected 521 | 254 267 . Remotely . | . . . Salvage Created 658 | . 595 63 Parts 42 | . 41 1 Haulers Intercepted . | . . . Recyclers Shooed . | . . . Parts Field Recycled . | . . . Retrieved Matter . | . . . Parts Self-Destructed . | . . . Prevented . | . . . Kills | -11 -10 -9 ------- Run | Scr Mat Mat Combat Hostiles Destroyed 15 | . 13 2 Guns 9 | . 8 1 Cannons 3 | . 2 1 AOE 3 | . 3 . Classes Destroyed 5 | . 4 1 Builder 1 | . 1 . Operator 4 | . 4 . Watcher 3 | . 3 . Grunt 14 | . 13 1 Sentry 1 | . . 1 Best Kill Streak 5 | . 5 1 Combat Bots Only 4 | . 4 1 Max Kills in Single Turn 1 | . 1 1 Gunslinging . | . . . Exploded 1 | . 1 . Melee . | . . . Uniques/NPCs Destroyed . | . . . Combat | -11 -10 -9 -------- Run | Scr Mat Mat Damage Taken 2107 | . 885 1222 Core 615 | . 194 421 Absorbed by Shields . | . . . Core Remaining (%) 61 | 100 22 . Volleys Fired 86 | . 63 23 Largest 2 | . 2 2 Hottest 85 | . 85 55 Shots Fired 154 | . 113 41 Gun 119 | . 96 23 Cannon 29 | . 11 18 Launcher 6 | . 6 . Special . | . . . Kinetic 112 | . 71 41 Thermal 4 | . 4 . Explosive 6 | . 6 . Electromagnetic 32 | . 32 . Robot Hit Streak 8 | . 7 8 Robot Miss Streak 4 | . 2 4 Penetration Max . | . . . Secondary Targets 1 | . 1 . Max Gunslinging Chain 1 | . 1 . Shots Hit Robots 103 | . 74 29 Core Hits 41 | . 35 6 Critical Hits 1 | . 1 . Critical Kills 1 | . 1 . Critical Parts Destroyed . | . . . Melee Attacks 4 | . . 4 Impact . | . . . Slashing . | . . . Piercing . | . . . Sneak Attacks . | . . . Combat Hostiles . | . . . Follow-up Attacks . | . . . Damage Inflicted 1573 | . 1243 330 Guns 815 | . 680 135 Cannons 349 | . 156 193 Explosions 406 | . 406 . Melee . | . . . Ramming 3 | . 1 2 Kinetic 776 | . 448 328 Thermal 130 | . 130 . Explosive 336 | . 336 . Electromagnetic 328 | . 328 . Impact . | . . . Slashing . | . . . Piercing . | . . . Highest Corruption . | . . . Average Corruption . | . . . Corruption Purged . | . . . Overload Shots . | . . . Overflow Damage 14 | . 14 . Projectiles . | . . . Explosions 14 | . 14 . Melee . | . . . Knockbacks 1 | . 1 . Impact . | . . . Kinetic 1 | . 1 . Secondary . | . . . Self-Inflicted Damage 85 | . 84 1 Shots 5 | . 5 . Rammed 2 | . 1 1 Targets Rammed 2 | . 1 1 Kicked . | . . . Crushed . | . . . Highest Temperature 141 | . 141 28 Average Temperature 31 | . 36 10 Received Heat Transfer 675 | . 447 228 Siege Activations . | . . . Robots Corrupted . | . . . Combat Hostiles . | . . . Parts Fried 1 | . 1 . Impact Corruptions . | . . . Robots Melted . | . . . Combat Hostiles . | . . . Parts Melted . | . . . Heat Transferred 248 | . 248 . Parts Sabotaged . | . . . Parts Stolen . | . . . Parts Stripped . | . . . Power Chain Reactions 2 | . 2 . Missiles Intercepted . | . . . Alert | -11 -10 -9 ------- Run | Scr Mat Mat Peak Influence 169 | . 169 102 Initial 34 | . . 34 Average 61 | . 66 52 Maximum Alert Level . | . . . Low Security (%) 100 | 100 100 100 Level 1 . | . . . Level 2 . | . . . Level 3 . | . . . Level 4 . | . . . Level 5 . | . . . High Security . | . . . Max Security . | . . . Squads Dispatched 5 | . 4 1 Investigation 1 | . 1 . Extermination . | . . . Reinforcement 4 | . 3 1 Assault . | . . . Garrison . | . . . Intercept . | . . . Construction Impeded . | . . . Haulers Reinforced . | . . . Stealth | -11 -10 -9 --------- Run | Scr Mat Mat Distress Signals 1 | . 1 . Communications Jammed . | . . . Distress Signals . | . . . Times Spotted 44 | . 37 7 Peak Tracking Total 6 | . 6 3 Tactical Retreats 7 | . 7 . Traps | -11 -10 -9 ------- Run | Scr Mat Mat Traps Triggered . | . . . Indirectly . | . . . Trap Hack Attempts . | . . . Triggered . | . . . Disarmed . | . . . Reprogrammed . | . . . Reused . | . . . Traps Extracted . | . . . Installed . | . . . Triggered . | . . . Machines | -11 -10 -9 ---------- Run | Scr Mat Mat Machines Disabled 3 | . 3 . Max in Single Turn 1 | . 1 . Machines Sabotaged . | . . . Garrisons Compromised . | . . . Overloaded Fab Kills . | . . . Fab Network Shutdowns . | . . . Hacking | -11 -10 -9 --------- Run | Scr Mat Mat Machines Accessed 10 | . 7 3 Terminals 8 | . 5 3 Fabricators . | . . . Repair Stations 1 | . 1 . Recycling Units 1 | . 1 . Scanalyzers . | . . . Garrison Access . | . . . Total Hacks 37 | . 22 15 Successful 29 | . 17 12 Failed 7 | . 5 2 Catastrophic . | . . . Database Lockouts 1 | . . 1 Manual . | . . . Terminals 34 | . 19 15 Fabricators . | . . . Repair Stations 2 | . 2 . Recycling Units 1 | . 1 . Scanalyzers . | . . . Garrison Access . | . . . Terminal Hacks 26 | . 14 12 Record 13 | . 6 7 Prototype ID Bank 1 | . . 1 Emergency Access Points 2 | . 1 1 Alert Level 2 | . 2 . Unreport Threat 2 | . 2 . Locate Traps 2 | . 2 . Maintenance Status 1 | . . 1 Hauler Manifests 2 | . 1 1 Zone Layout 1 | . . 1 Fabricator Hacks . | . . . Repair Station Hacks 2 | . 2 . Scan Component 1 | . 1 . Repair 1 | . 1 . Recycling Unit Hacks 1 | . 1 . Report Inventory 1 | . 1 . Scanalyzer . | . . . Garrison Access Hacks . | . . . Unauthorized Hacks . | . . . Terminals . | . . . Fabricators . | . . . Repair Stations . | . . . Recycling Units . | . . . Scanalyzers . | . . . Garrison Access . | . . . Data Cores Recovered . | . . . Used . | . . . Hacking Detections 7 | . 5 2 Full Trace Events 4 | . 3 1 Feedback Events . | . . . Feedback Blocked . | . . . Robot Schematics Acquired . | . . . Robots Built . | . . . Matter . | . . . Time . | . . . Total Robot Build Rating . | . . . Part Schematics Acquired . | . . . Parts Built . | . . . Matter . | . . . Time . | . . . Total Part Build Rating . | . . . Parts Repaired 1 | . 1 . Time 26 | . 26 . Parts Recycled . | . . . Recycled Matter . | . . . Retrieved Matter . | . . . Retrieved Components . | . . . Parts Scanalyzed . | . . . Part Schematics Acquired . | . . . Parts Damaged . | . . . Bothacking | -11 -10 -9 ------------ Run | Scr Mat Mat Used RIF Installer . | . . . Robots Hacked 1 | . . 1 Non-combat . | . . . Combat 1 | . . 1 Robot Hacks Applied 1 | . . 1 parse_system 1 | . . 1 Relay Couplers Released . | . . . Robots Rewired . | . . . Allies Hacked . | . . . Hacks Repelled . | . . . Allies | -11 -10 -9 -------- Run | Scr Mat Mat Total Allies . | . . . Largest Group . | . . . Highest-Rated Group . | . . . Highest-Rated Ally . | . . . Total Orders . | . . . Ally Attacks . | . . . Total Damage . | . . . Kills . | . . . Allies Corrupted . | . . . Allies Melted . | . . . Intel | -11 -10 -9 ------- Run | Scr Mat Mat Robot Analysis Total . | . . . Derelict Logs Recovered . | . . . Drone Launches . | . . . Drone Recoveries . | . . . Exploration | -11 -10 -9 ------------- Run | Scr Mat Mat Turns Passed 1615 | 55 1244 316 Spaces Moved 951 | 41 795 115 Core 10 | 1 . 9 Treads . | . . . Legs 362 | . 256 106 Wheels 579 | 40 539 . Hover . | . . . Flight . | . . . Fastest Speed 50 | 50 100 150 Average Speed 126 | 98 117 198 Slowest Speed 600 | 100 180 600 Overloaded Moves . | . . . Propulsion Burnouts . | . . . Robots Hopped . | . . . Cave-ins Triggered . | . . . Exploration Rate (%) 40 | 5 99 16 Regions Visited 2 Branch Regions . Pre-discovered Areas . | . . . Known Exits Taken . | . . . Unknown Exits Taken 2 | 1 1 . Scrap Searched . | . . . Spaces Dug . | . . . Terrain Destroyed 27 | . 27 . Melee . | . . . Projectile . | . . . AOE 27 | . 27 . Terrain Rammed . | . . . Walls Destroyed . | . . . Machines Disabled . | . . . Actions | -11 -10 -9 --------- Run | Scr Mat Mat Total 1220 | 52 1004 164 Wait 121 | . 108 13 Move 949 | 40 794 115 Hop . | . . . Pick Up 21 | 6 14 1 Fast Attach 12 | 6 6 . Attach 11 | . 5 6 Detach . | . . . Swap 6 | . 5 1 Drop 8 | . 8 . Fire 86 | . 63 23 Melee 4 | . . 4 Ram 1 | . 1 . Kick 1 | . . 1 Crush . | . . . Escape Stasis . | . . . Rewire . | . . . Trap . | . . . Miscellaneous . | . . . Route ------- -11/Scrapyard -10/Materials (discovered 5 exits: *Mat x3 / [*Min x2]) -9/Materials History --------- Turn | Location | Event 11 | -11/Scrapyard | Discovered new exit (range 15) 56 | -11/Scrapyard | Entered Materials 302 | -10/Materials | Build established: Mutant 496 | -10/Materials | Discovered new exit (range 12) 599 | -10/Materials | Repaired Lgt. Ion Engine 605 | -10/Materials | Discovered new exit (range 6) 664 | -10/Materials | Discovered new exit (range 6) 806 | -10/Materials | Core integrity fell below 50% 844 | -10/Materials | Lost 5 parts (2p1n2w) 1070 | -10/Materials | Discovered new exit (range 15) 1191 | -10/Materials | Discovered new exit (range 8) 1300 | -10/Materials | Entered another Materials area 1300 | -9/Materials | Evolved 2 slots: Utility x1, Weapon x1 1464 | -9/Materials | Central database locked down 1590 | -9/Materials | Core integrity fell below 50% 1607 | -9/Materials | Core integrity fell below 20% 1616 | -9/Materials | Destroyed by L-31 Rogue with Katana Last Messages --------------- 2x Tractor Beam 01479_ U-05 Engineer builds a Wall. 01480_ T-07 Excavator is excavating. 01483_ U-05 Engineer lays Concrete. 01484_ U-05 Engineer builds a Wall. 01519_ G-34 Mercenary destroyed. 01524_ Jacked L-31 Rogue... >>parse_system Reading system data... 01528_ Lgt. Cannon destroyed. 01535_ Imp. Aluminum Leg destroyed. 01538_ Lgt. Assault Rifle destroyed. 01538_ Aluminum Leg destroyed. 01538_ Jacked L-31 Rogue... 01553_ Slammed into L-31 Rogue. 01567_ Aluminum Leg destroyed. 01567_ Ion Engine destroyed. 01583_ Datajack destroyed. 01583_ Targeting Computer destroyed. 01602_ Lgt. Armor Plating destroyed. Map ----- +----------------------------------------------------+ | ???????# #???????# #????????########????? | | ?????###/#######?# #???####???????# ????? | | ?????# #?# #???####???????# ?? | | ?????# #?# #???####???????# ?? | | ?????# """ """ #?# #???####???????# ?? | | ?????# """ """ #?# #???####???????# ?? | | ?????# """ """ #?# #???####???????## ?? | | ?????# #?# #???#####???????# ?? | | ?????# #?# #??# #???????# ?? | | ?????# #?# #### # ????????# ## | | ?????#+#####+##### ## ########### # | | ?????# %# | | ?????# T # | | ?????# ### ##### ### ######### # | | ?????# #?# #?####+##### ######### # | | ###### #?# #?# # # T # # | | # # ######## """ # # """ # ## | | # = # + ! # """ # + """ # | | # # # % /# """ # # """ + | | # # # " # # # # | | # + # """ !#"" """ # ##########+### | | # # # "" #"T """ # + T | | # !!!# + """ #"" """ + ####### | | # !!!#### "" # # #?????# | | # !! #??# """ ########## #?????# "" | | ######??# """ l@ #?????# """ | | ????????# """ #############?????# """ | | ????????# " #?????????????????# """ | | ????????# #?????????????????# """ | | ????????########?????????????????# | | ?????????????????????????????????######## | | | | | | | | | | | | | | | | | | | | | | | | | | | | | | | | | | | | | | | +----------------------------------------------------+ Best States ------------- Heat Dissipation 28 Energy Generation 10 Energy Capacity 250 Matter Stores 300 Matter Capacity 300 Sight Range 16 Robot Scan Range 10 Terrain Scan Density 10 Armor Coverage 150 Evasion (%) 40 Targeting Accuracy 5 Offensive Hacking 10 Item Schematics ----------------- None Robot Schematics ------------------ None Fabricated ------------ Nothing Alien Tech Used ----------------- None Achievements -------------- None Challenges ------------ None Game ------ Seed FrostPortableAnalyzer Manual? 0 Play Time 00:29:44 Cumulative 10.1 hours Start 2020.12.27 @ 12:18:14 End 2020.12.27 @ 12:49:31 Sessions 1 Manual Loads 0 Difficulty Rogue Special Mode None Game No. 12 Rogue 12 Adventurer 0 Explorer 0 Win Type - Total 0 Types 0/0/0/0/0/0/0/0/0 Lore% 15 Gallery% 15 Achievement% 10 Wizard Run 0 Options --------- ASCII 0 Keyboard 0 Movement Numpad Keybinds 0 Fullscreen 1 Font 18/SmallcapsGlow Map View 76x50 Tactical HUD 1 Map Filters NONE Filters NONE Steam 1 RUN: 07229998-35d9-4669-a441-dfe3018841f6